[Event "LJ Slovak Open 2022"]
[Site "Liptovsky Jan"]
[Date "2022.06.23"]
[Round "1.44"]
[White "Miciak, Emanuel"]
[Black "Haasova, Nina"]
[Result "1-0"]
[ECO "D02"]
[WhiteElo "1804"]
[BlackElo "1216"]
[Annotator "NA"]
[PlyCount "100"]
[EventDate "2022.06.23"]
[EventType "swiss"]
[EventCountry "SVK"]
[SourceTitle "playchess.com"]
[Source "ChessBase"]
[SourceQuality "1"]
[TimeControl "3600+30"]

1. d4 {[%emt 0:00:05]} d5 {[%emt 0:00:11]} 2. Bf4 {[%emt 0:00:40]} Nf6 {[%emt 0:00:23]} 3. e3 {[%emt 0:00:38]} Bf5 {[%emt 0:00:31]} 4. Nf3 {[%emt 0:00:38]} e6 {[%emt 0:00:32]} 5. Bd3 {[%emt 0:00:42]} Bxd3 {[%emt 0:00:48]} 6. Qxd3 {[%emt 0:01:19]} Bd6 {[%emt 0:00:26]} 7. Nbd2 {[%emt 0:02:01]} O-O {[%emt 0:00:31]} 8. O-O {[%emt 0:01:57]} c5 {[%emt 0:00:45]} 9. Bxd6 {[%emt 0:02:02]} Qxd6 {[%emt 0:00:23]} 10. c3 {[%emt 0:01:05]} c4 {[%emt 0:00:35]} 11. Qc2 {[%emt 0:02:52]} Nc6 {[%emt 0:01:13]} 12. Rad1 {[%emt 0:01:22]} e5 {[%emt 0:01:32]} 13. dxe5 {[%emt 0:02:38]} Nxe5 {[%emt 0:00:46]} 14. Nxe5 {[%emt 0:00:39]} Qxe5 {[%emt 0:00:23]} 15. Nf3 {[%emt 0:01:30]} Qe4 {[%emt 0:01:10]} 16. Qc1 {[%emt 0:03:10]} h6 {[%emt 0:01:04]} 17. Rd4 {[%emt 0:00:43]} Qe6 {[%emt 0:01:01]} 18. Rfd1 {[%emt 0:02:07]} Rad8 {[%emt 0:00:58]} 19. Nd2 {[%emt 0:03:35]} Ne4 {[%emt 0:01:23]} 20. Nxe4 {[%emt 0:01:06]} dxe4 {[%emt 0:01:22]} 21. Rxd8 {[%emt 0:00:13]} Rxd8 {[%emt 0:00:30]} 22. Rxd8+ {[%emt 0:00:04]} Kh7 {[%emt 0:00:17]} 23. Qd1 {[%emt 0:01:45]} b5 {[%emt 0:00:43]} 24. h3 {[%emt 0:00:57]} a6 {[%emt 0:00:45]} 25. Qd5 {[%emt 0:00:16]} Qxd5 {[%emt 0:00:29]} 26. Rxd5 {[%emt 0:00:07]} f6 {[%emt 0:00:52]} 27. a4 {[%emt 0:00:08]} bxa4 {[%emt 0:00:29]} 28. Ra5 {[%emt 0:00:07]} Kg6 {[%emt 0:00:40]} 29. Rxa6 {[%emt 0:00:04]} a3 {[%emt 0:00:31]} 30. bxa3 {[%emt 0:00:15]} Kf7 {[%emt 0:00:35]} 31. Rc6 {[%emt 0:00:06]} Ke8 {[%emt 0:00:12]} 32. Rc7 {[%emt 0:00:10]} g5 {[%emt 0:00:20]} 33. a4 {[%emt 0:00:07]} Kd8 {[%emt 0:00:05]} 34. Rh7 {[%emt 0:00:09]} Kc8 {[%emt 0:00:28]} 35. Rxh6 {[%emt 0:00:11]} f5 {[%emt 0:00:37]} 36. Rg6 {[%emt 0:00:08]} f4 {[%emt 0:00:25]} 37. Rxg5 {[%emt 0:00:07]} fxe3 {[%emt 0:00:14]} 38. fxe3 {[%emt 0:00:08]} Kb7 {[%emt 0:00:23]} 39. Rg6 {[%emt 0:00:10]} Kc7 {[%emt 0:00:40]} 40. h4 {[%emt 0:00:06]} Kd7 {[%emt 0:00:15]} 41. a5 {[%emt 0:00:09]} Kc7 {[%emt 0:00:16]} 42. h5 {[%emt 0:00:04]} Kd7 {[%emt 0:00:41]} 43. a6 {[%emt 0:00:08]} Kc7 {[%emt 0:00:20]} 44. h6 {[%emt 0:00:06]} Kd7 {[%emt 0:00:24]} 45. a7 {[%emt 0:00:20]} Ke7 {[%emt 0:00:30]} 46. Ra6 {[%emt 0:00:26]} Kd7 {[%emt 0:00:25]} 47. a8=Q {[%emt 0:00:52]} Kc7 {[%emt 0:00:26]} 48. Qc6+ {[%emt 0:00:15]} Kd8 {[%emt 0:00:17]} 49. Qd6+ {[%emt 0:00:29]} Ke8 {[%emt 0:00:14]} 50. Qc7 {[%emt 0:00:33]} Kf8 {[%emt 0:00:19]} 1-0

[Event "LJ Slovak Open 2022"]
[Site "Liptovsky Jan"]
[Date "2022.06.23"]
[Round "1.45"]
[White "Kovacik, Oliver"]
[Black "Recky, Norbert"]
[Result "0-1"]
[ECO "D11"]
[WhiteElo "1331"]
[BlackElo "1755"]
[Annotator "NA RC"]
[PlyCount "90"]
[EventDate "2022.06.23"]
[EventType "swiss"]
[EventCountry "SVK"]
[SourceTitle "playchess.com"]
[Source "ChessBase"]
[SourceQuality "1"]
[TimeControl "3600+30"]

1. d4 {[%emt 0:00:07]} Nf6 {[%emt 0:00:03]} 2. Nf3 {[%emt 0:00:20]} g6 {[%emt 0:00:10]} 3. g3 {[%emt 0:00:13]} d5 {[%emt 0:00:13]} 4. Bg2 {[%emt 0:00:16]} Bg7 {[%emt 0:00:11]} 5. c4 {[%emt 0:01:01]} c6 {[%emt 0:00:08]} 6. Qc2 {[%emt 0:00:26]} Be6 {[%emt 0:00:34]} 7. Nbd2 {[%emt 0:00:51]} Qa5 {[%emt 0:00:27]} 8. O-O {[%emt 0:00:20]} O-O {[%emt 0:00:11]} 9. Ne1 {[%emt 0:03:07]} Na6 {[%emt 0:00:32]} 10. a3 {[%emt 0:04:52]} Rac8 {[%emt 0:00:21]} 11. e3 {[%emt 0:03:47]} Bf5 {[%emt 0:01:21]} 12. Qb3 {[%emt 0:00:39]} b5 {[%emt 0:00:57]} 13. cxd5 {[%emt 0:01:04]} cxd5 {[%emt 0:03:46]} 14. Ndf3 {[%emt 0:02:41]} Be4 {[%emt 0:01:07]} 15. Bd2 {[%emt 0:00:43]} Qb6 {[%emt 0:00:29]} 16. Ne5 {[%emt 0:01:35]} Rfd8 {[%emt 0:00:49]} 17. Bxe4 {[%emt 0:02:07]} Nxe4 {[%emt 0:00:20]} 18. Qd3 {[%emt 0:00:45]} Rc7 {[%emt 0:01:14]} 19. Qe2 {[%emt 0:01:20]} Rdc8 {[%emt 0:01:54]} 20. Rd1 {[%emt 0:02:40]} b4 {[%emt 0:01:24]} 21. N1d3 {[%emt 0:02:53]} bxa3 {[%emt 0:02:50]} 22. bxa3 {[%emt 0:00:24]} Rc2 {[%emt 0:00:51]} 23. Qe1 {[%emt 0:01:39]} Qb5 {[%emt 0:00:45]} 24. Rb1 {[%emt 0:01:31]} Qa4 {[%emt 0:01:14]} 25. Bb4 {[%emt 0:01:07]} Nxb4 {[%emt 0:06:26]} 26. Nxb4 {[%emt 0:00:31]} Nd2 {[%emt 0:02:23]} 27. Nxc2 {[%emt 0:00:53]} Nxf1 {[%emt 0:00:45]} 28. Qxf1 {[%emt 0:01:13]} Bxe5 {[%emt 0:00:20]} 29. dxe5 {[%emt 0:01:17]} Rxc2 {[%emt 0:01:30]} 30. Qd1 {[%emt 0:00:34]} Qc6 {[%emt 0:01:06]} 31. Qd4 {[%emt 0:01:24]} a5 {[%emt 0:02:50]} 32. Rb8+ {[%emt 0:04:27]} Kg7 {[%emt 0:00:47]} 33. Qf4 {[%emt 0:02:13]} Rc1+ {[%emt 0:00:52]} 34. Kg2 {[%emt 0:00:12]} d4+ {[%emt 0:00:05]} 35. Kh3 {[%emt 0:00:52]} d3 {[%emt 0:03:37]} 36. Rd8 {[%emt 0:01:32]} Rc3 {[%emt 0:04:20]} 37. Qh4 {[%emt 0:01:52]} Qe6+ {[%emt 0:02:47]} 38. g4 {[%emt 0:00:35]} Qxe5 {[%emt 0:00:35]} 39. g5 {[%emt 0:00:32]} h5 {[%emt 0:03:32]} 40. gxh6+ {[%emt 0:01:21]} Kh7 {[%emt 0:00:08]} 41. Rf8 {[%emt 0:00:49]} Qf5+ {[%emt 0:02:21]} 42. Kg2 {[%emt 0:00:22]} d2 {[%emt 0:02:13]} 43. Qd4 {[%emt 0:01:21]} Qg5+ {[%emt 0:01:26]} 44. Kh3 {[%emt 0:01:14]} Qxh6+ {[%emt 0:01:18]} 45. Kg3 {[%emt 0:00:35]} Qxf8 {[%emt 0:00:22]} 0-1

[Event "LJ Slovak Open 2022"]
[Site "Liptovsky Jan"]
[Date "2022.06.23"]
[Round "1.46"]
[White "Smetana, Peter"]
[Black "Muller, Tomas"]
[Result "1-0"]
[ECO "A30"]
[WhiteElo "1740"]
[BlackElo "1240"]
[Annotator "NA RC"]
[PlyCount "97"]
[EventDate "2022.06.23"]
[EventType "swiss"]
[EventCountry "SVK"]
[SourceTitle "playchess.com"]
[Source "ChessBase"]
[SourceQuality "1"]
[TimeControl "3600+30"]

1. c4 {[%emt 0:01:04]} c5 {[%emt 0:02:30]} 2. Nf3 {[%emt 0:01:26]} Nf6 {[%emt 0:01:31]} 3. b3 {[%emt 0:01:36]} g6 {[%emt 0:01:29]} 4. Bb2 {[%emt 0:01:24]} Bg7 {[%emt 0:01:30]} 5. e3 {[%emt 0:00:30]} b6 {[%emt 0:01:30]} 6. Qc2 {[%emt 0:01:16]} Bb7 {[%emt 0:01:30]} 7. Be2 {[%emt 0:02:44]} d6 {[%emt 0:01:30]} 8. O-O {[%emt 0:01:30]} O-O {[%emt 0:01:30]} 9. d4 {[%emt 0:01:15]} Nbd7 {[%emt 0:01:30]} 10. d5 {[%emt 0:01:18]} Re8 {[%emt 0:01:30]} 11. Rd1 {[%emt 0:02:30]} a5 {[%emt 0:02:20]} 12. Nc3 {[%emt 0:03:37]} Ra6 {[%emt 0:00:41]} 13. Nb5 {[%emt 0:01:09]} Qb8 {[%emt 0:02:13]} 14. a3 {[%emt 0:03:41]} Rc8 {[%emt 0:01:41]} 15. h4 {[%emt 0:14:40]} h5 {[%emt 0:01:26]} 16. Ng5 {[%emt 0:02:30]} Qa8 {[%emt 0:02:35]} 17. Bd3 {[%emt 0:03:00]} Nf8 {[%emt 0:02:08]} 18. e4 {[%emt 0:02:24]} a4 {[%emt 0:05:29]} 19. b4 {[%emt 0:01:44]} e6 {[%emt 0:05:22]} 20. Nxd6 {[%emt 0:01:03]} Rd8 {[%emt 0:01:20]} 21. Ngxf7 {[%emt 0:01:32]} Rd7 {[%emt 0:01:29]} 22. b5 {[%emt 0:01:18]} Ra7 {[%emt 0:00:54]} 23. e5 {[%emt 0:08:54]} Ng4 {[%emt 0:02:37]} 24. Bxg6 {[%emt 0:00:59]} exd5 {[%emt 0:02:13]} 25. Bxh5 {[%emt 0:05:05]} dxc4 {[%emt 0:03:54]} 26. Bxg4 {[%emt 0:01:03]} Bxg2 {[%emt 0:01:16]} 27. Qxc4 {[%emt 0:01:16]} Rxf7 {[%emt 0:00:55]} 28. Nxf7 {[%emt 0:00:48]} Rxf7 {[%emt 0:00:15]} 29. Bh5 {[%emt 0:00:48]} Bh1 {[%emt 0:01:42]} 30. Bxf7+ {[%emt 0:00:25]} Kh8 {[%emt 0:00:10]} 31. Bd5 {[%emt 0:00:11]} Bxd5 {[%emt 0:01:29]} 32. Qxd5 {[%emt 0:00:13]} Qxd5 {[%emt 0:00:06]} 33. Rxd5 {[%emt 0:00:08]} Ng6 {[%emt 0:00:39]} 34. Kg2 {[%emt 0:01:22]} Nf4+ {[%emt 0:00:09]} 35. Kf3 {[%emt 0:00:14]} Nxd5 {[%emt 0:00:09]} 36. Ke4 {[%emt 0:00:07]} Ne7 {[%emt 0:00:13]} 37. f4 {[%emt 0:00:19]} Ng6 {[%emt 0:00:50]} 38. h5 {[%emt 0:00:06]} Ne7 {[%emt 0:00:17]} 39. f5 {[%emt 0:00:09]} Nc8 {[%emt 0:01:15]} 40. f6 {[%emt 0:00:11]} Bf8 {[%emt 0:00:32]} 41. e6 {[%emt 0:00:13]} Kg8 {[%emt 0:01:40]} 42. e7 {[%emt 0:00:44]} Bxe7 {[%emt 0:00:47]} 43. fxe7 {[%emt 0:00:07]} Nxe7 {[%emt 0:00:03]} 44. Ke5 {[%emt 0:00:05]} Nc8 {[%emt 0:01:04]} 45. Rd1 {[%emt 0:00:27]} Na7 {[%emt 0:00:32]} 46. Rd8+ {[%emt 0:00:04]} Kh7 {[%emt 0:00:19]} 47. Rd7+ {[%emt 0:00:03]} Kh6 {[%emt 0:00:13]} 48. Rxa7 {[%emt 0:00:04]} Kxh5 {[%emt 0:00:00]} 49. Kf5 {[%emt 0:00:00]} 1-0

[Event "LJ Slovak Open 2022"]
[Site "Liptovsky Jan"]
[Date "2022.06.23"]
[Round "1.47"]
[White "Janouskova, Eliska"]
[Black "Zeman, Jan"]
[Result "1-0"]
[ECO "B22"]
[WhiteElo "1167"]
[BlackElo "1726"]
[Annotator "NA RC"]
[PlyCount "69"]
[EventDate "2022.06.23"]
[EventType "swiss"]
[EventCountry "SVK"]
[SourceTitle "playchess.com"]
[Source "ChessBase"]
[SourceQuality "1"]
[TimeControl "3600+30"]

1. e4 {[%emt 0:00:39]} c5 {[%emt 0:00:18]} 2. d4 {[%emt 0:00:26]} cxd4 {[%emt 0:00:17]} 3. c3 {[%emt 0:00:20]} Nc6 {[%emt 0:00:45]} 4. cxd4 {[%emt 0:00:27]} d6 {[%emt 0:00:20]} 5. Bc4 {[%emt 0:01:33]} Nf6 {[%emt 0:00:51]} 6. Nc3 {[%emt 0:00:53]} g6 {[%emt 0:00:14]} 7. h3 {[%emt 0:02:31]} Bg7 {[%emt 0:00:13]} 8. Nf3 {[%emt 0:02:11]} a6 {[%emt 0:00:29]} 9. a4 {[%emt 0:04:23]} O-O {[%emt 0:00:20]} 10. O-O {[%emt 0:00:56]} e6 {[%emt 0:00:21]} 11. Be3 {[%emt 0:01:53]} Bd7 {[%emt 0:02:30]} 12. e5 {[%emt 0:03:51]} Ne8 {[%emt 0:05:01]} 13. Bf4 {[%emt 0:00:31]} d5 {[%emt 0:00:30]} 14. Bd3 {[%emt 0:01:30]} Qb6 {[%emt 0:01:00]} 15. Rb1 {[%emt 0:05:19]} Nxd4 {[%emt 0:00:21]} 16. Be3 {[%emt 0:01:54]} Nxf3+ {[%emt 0:01:58]} 17. Qxf3 {[%emt 0:00:22]} Qc7 {[%emt 0:00:40]} 18. Rfe1 {[%emt 0:02:59]} Bxe5 {[%emt 0:01:02]} 19. Bg5 {[%emt 0:02:30]} f6 {[%emt 0:01:50]} 20. Bh6 {[%emt 0:01:34]} Rf7 {[%emt 0:00:40]} 21. Bd2 {[%emt 0:01:35]} Ng7 {[%emt 0:02:02]} 22. Rbc1 {[%emt 0:01:30]} Qd6 {[%emt 0:00:59]} 23. Re2 {[%emt 0:03:48]} Bc6 {[%emt 0:00:22]} 24. Rce1 {[%emt 0:03:11]} Bd4 {[%emt 0:00:47]} 25. Kh1 {[%emt 0:03:18]} Bb6 {[%emt 0:00:32]} 26. Qg4 {[%emt 0:01:18]} Bc7 {[%emt 0:01:08]} 27. g3 {[%emt 0:00:41]} f5 {[%emt 0:01:55]} 28. Qd4 {[%emt 0:01:13]} Re8 {[%emt 0:01:41]} 29. Bf4 {[%emt 0:02:05]} Qd7 {[%emt 0:00:35]} 30. Bxc7 {[%emt 0:00:17]} Qxc7 {[%emt 0:00:20]} 31. Re5 {[%emt 0:00:31]} Qd7 {[%emt 0:01:37]} 32. Kh2 {[%emt 0:01:22]} Qd6 {[%emt 0:00:47]} 33. Ne2 {[%emt 0:00:57]} Nh5 {[%emt 0:01:07]} 34. b3 {[%emt 0:01:20]} Kg7 {[%emt 0:02:35]} 35. Rxe6+ {[%emt 0:00:02]} 1-0

[Event "LJ Slovak Open 2022"]
[Site "Liptovsky Jan"]
[Date "2022.06.23"]
[Round "1.48"]
[White "Szaszak, Robert"]
[Black "Pechociakova, Petra"]
[Result "1-0"]
[ECO "C50"]
[WhiteElo "1717"]
[BlackElo "1160"]
[Annotator "NA RC"]
[PlyCount "45"]
[EventDate "2022.06.23"]
[EventType "swiss"]
[EventCountry "SVK"]
[SourceTitle "playchess.com"]
[Source "ChessBase"]
[SourceQuality "1"]
[TimeControl "3600+30"]

1. e4 {[%emt 0:00:06]} e5 {[%emt 0:00:07]} 2. Nf3 {[%emt 0:00:08]} Nc6 {[%emt 0:00:09]} 3. Bc4 {[%emt 0:00:10]} Nf6 {[%emt 0:00:22]} 4. d3 {[%emt 0:01:06]} Bc5 {[%emt 0:00:48]} 5. Nc3 {[%emt 0:00:29]} h6 {[%emt 0:00:55]} 6. Bd2 {[%emt 0:01:13]} d6 {[%emt 0:01:09]} 7. h3 {[%emt 0:00:23]} O-O {[%emt 0:00:27]} 8. Qc1 {[%emt 0:00:48]} Kh7 {[%emt 0:02:32]} 9. g4 {[%emt 0:02:41]} g5 {[%emt 0:02:24]} 10. Nh2 {[%emt 0:04:41]} Be6 {[%emt 0:03:05]} 11. Bb3 {[%emt 0:02:23]} d5 {[%emt 0:02:37]} 12. f3 {[%emt 0:02:01]} dxe4 {[%emt 0:02:05]} 13. fxe4 {[%emt 0:00:20]} Qd4 {[%emt 0:01:07]} 14. Rf1 {[%emt 0:00:21]} Nd7 {[%emt 0:01:07]} 15. Nb5 {[%emt 0:00:39]} Qg1 {[%emt 0:02:45]} 16. Rxg1 {[%emt 0:00:16]} Bxg1 {[%emt 0:00:11]} 17. Nf3 {[%emt 0:00:20]} Bb6 {[%emt 0:00:29]} 18. Bxg5 {[%emt 0:01:52]} hxg5 {[%emt 0:01:49]} 19. Nxg5+ {[%emt 0:01:13]} Kg7 {[%emt 0:02:43]} 20. Bxe6 {[%emt 0:00:47]} f6 {[%emt 0:01:02]} 21. Bxd7 {[%emt 0:00:18]} fxg5 {[%emt 0:01:02]} 22. Qxg5+ {[%emt 0:00:17]} Kf7 {[%emt 0:00:37]} 23. O-O-O {[%emt 0:00:21]} 1-0

[Event "LJ Slovak Open 2022"]
[Site "Liptovsky Jan"]
[Date "2022.06.23"]
[Round "1.49"]
[White "Nedoba, Jakub"]
[Black "Kulich, Filip"]
[Result "0-1"]
[ECO "D10"]
[WhiteElo "1158"]
[BlackElo "1682"]
[Annotator "NA RC"]
[PlyCount "40"]
[EventDate "2022.06.23"]
[EventType "swiss"]
[EventCountry "SVK"]
[SourceTitle "playchess.com"]
[Source "ChessBase"]
[SourceQuality "1"]
[TimeControl "3600+30"]

1. d4 {[%emt 0:00:06]} d5 {[%emt 0:00:21]} 2. Bf4 {[%emt 0:00:08]} Nf6 {[%emt 0:00:27]} 3. e3 {[%emt 0:00:13]} Bf5 {[%emt 0:00:32]} 4. c4 {[%emt 0:00:16]} c6 {[%emt 0:00:53]} 5. Nc3 {[%emt 0:03:08]} e6 {[%emt 0:00:43]} 6. c5 {[%emt 0:02:06]} Nbd7 {[%emt 0:01:16]} 7. Nf3 {[%emt 0:01:42]} Be7 {[%emt 0:02:03]} 8. b4 {[%emt 0:04:07]} b6 {[%emt 0:01:45]} 9. a4 {[%emt 0:00:42]} Nh5 {[%emt 0:06:31]} 10. Bg3 {[%emt 0:02:32]} Nxg3 {[%emt 0:01:11]} 11. hxg3 {[%emt 0:00:13]} a5 {[%emt 0:00:15]} 12. Ne5 {[%emt 0:01:53]} Nxe5 {[%emt 0:00:42]} 13. dxe5 {[%emt 0:00:18]} axb4 {[%emt 0:00:11]} 14. cxb6 {[%emt 0:04:58]} bxc3 {[%emt 0:00:36]} 15. a5 {[%emt 0:00:14]} Bb4 {[%emt 0:01:09]} 16. Qb3 {[%emt 0:01:13]} Qe7 {[%emt 0:01:03]} 17. a6 {[%emt 0:07:37]} c2+ {[%emt 0:01:25]} 18. Ke2 {[%emt 0:00:17]} O-O {[%emt 0:00:51]} 19. Qa4 {[%emt 0:03:36]} Qc5 {[%emt 0:00:19]} 20. b7 {[%emt 0:02:38]} Qc4+ {[%emt 0:00:23]} 0-1

[Event "LJ Slovak Open 2022"]
[Site "Liptovsky Jan"]
[Date "2022.06.23"]
[Round "1.50"]
[White "Volek, Jan"]
[Black "Magdova, Lucia"]
[Result "1-0"]
[ECO "C42"]
[WhiteElo "1687"]
[BlackElo "1055"]
[Annotator "NA RC"]
[PlyCount "51"]
[EventDate "2022.06.23"]
[EventType "swiss"]
[EventCountry "SVK"]
[SourceTitle "playchess.com"]
[Source "ChessBase"]
[SourceQuality "1"]
[TimeControl "3600+30"]

1. e4 {[%emt 0:00:10]} e5 {[%emt 0:00:08]} 2. Nc3 {[%emt 0:00:29]} Nf6 {[%emt 0:00:19]} 3. Nf3 {[%emt 0:00:23]} Nc6 {[%emt 0:00:16]} 4. Be2 {[%emt 0:01:00]} Bb4 {[%emt 0:02:32]} 5. d3 {[%emt 0:01:58]} d6 {[%emt 0:01:59]} 6. O-O {[%emt 0:01:12]} Bg4 {[%emt 0:03:31]} 7. Bg5 {[%emt 0:00:50]} O-O {[%emt 0:00:17]} 8. Nd5 {[%emt 0:00:15]} Nd4 {[%emt 0:06:18]} 9. Nxb4 {[%emt 0:01:13]} h6 {[%emt 0:06:37]} 10. Bxf6 {[%emt 0:00:42]} Qxf6 {[%emt 0:02:14]} 11. Nxd4 {[%emt 0:00:35]} Bd7 {[%emt 0:13:00]} 12. Nd5 {[%emt 0:01:23]} Qd8 {[%emt 0:01:34]} 13. Nf3 {[%emt 0:00:25]} c6 {[%emt 0:05:09]} 14. Ne3 {[%emt 0:00:35]} Be6 {[%emt 0:00:45]} 15. d4 {[%emt 0:00:43]} exd4 {[%emt 0:00:33]} 16. Nxd4 {[%emt 0:00:34]} Bd7 {[%emt 0:03:48]} 17. Ndf5 {[%emt 0:01:19]} Bxf5 {[%emt 0:02:58]} 18. Nxf5 {[%emt 0:00:30]} d5 {[%emt 0:00:30]} 19. exd5 {[%emt 0:00:30]} cxd5 {[%emt 0:00:30]} 20. Bf3 {[%emt 0:00:30]} Re8 {[%emt 0:00:30]} 21. Re1 {[%emt 0:00:30]} Qd7 {[%emt 0:01:59]} 22. Bg4 {[%emt 0:01:16]} Qd8 {[%emt 0:00:25]} 23. Rxe8+ {[%emt 0:01:16]} Qxe8 {[%emt 0:00:09]} 24. Qd4 {[%emt 0:01:49]} f6 {[%emt 0:02:09]} 25. Qxd5+ {[%emt 0:00:29]} Kf8 {[%emt 0:01:32]} 26. Qxb7 {[%emt 0:00:20]} 1-0

[Event "LJ Slovak Open 2022"]
[Site "Liptovsky Jan"]
[Date "2022.06.23"]
[Round "1.51"]
[White "Socha, Wiktor"]
[Black "Ciglian, Michal"]
[Result "0-1"]
[ECO "B18"]
[WhiteElo "1020"]
[BlackElo "1704"]
[Annotator "NA RC"]
[PlyCount "92"]
[EventDate "2022.06.23"]
[EventType "swiss"]
[EventCountry "SVK"]
[SourceTitle "playchess.com"]
[Source "ChessBase"]
[SourceQuality "1"]
[TimeControl "3600+30"]

1. e4 {[%emt 0:00:21]} c6 {[%emt 0:00:12]} 2. Nc3 {[%emt 0:00:26]} d5 {[%emt 0:00:26]} 3. d4 {[%emt 0:00:54]} dxe4 {[%emt 0:00:23]} 4. Nxe4 {[%emt 0:00:22]} Bf5 {[%emt 0:00:23]} 5. f3 {[%emt 0:02:14]} e6 {[%emt 0:00:30]} 6. Ne2 {[%emt 0:04:05]} Nd7 {[%emt 0:02:07]} 7. Be3 {[%emt 0:05:57]} Ngf6 {[%emt 0:01:52]} 8. N2g3 {[%emt 0:04:05]} Bg6 {[%emt 0:00:30]} 9. Qd2 {[%emt 0:02:52]} Be7 {[%emt 0:03:07]} 10. Be2 {[%emt 0:03:09]} Rc8 {[%emt 0:02:02]} 11. Rc1 {[%emt 0:05:01]} O-O {[%emt 0:01:35]} 12. O-O {[%emt 0:02:22]} Nd5 {[%emt 0:02:20]} 13. c3 {[%emt 0:04:05]} Nxe3 {[%emt 0:01:09]} 14. Qxe3 {[%emt 0:00:40]} Qb6 {[%emt 0:02:59]} 15. b4 {[%emt 0:05:03]} e5 {[%emt 0:03:34]} 16. Rfd1 {[%emt 0:05:59]} Rfd8 {[%emt 0:05:39]} 17. a4 {[%emt 0:02:12]} a6 {[%emt 0:01:09]} 18. a5 {[%emt 0:02:09]} Qa7 {[%emt 0:00:10]} 19. Rd2 {[%emt 0:02:05]} f5 {[%emt 0:00:49]} 20. Bc4+ {[%emt 0:08:16]} Kh8 {[%emt 0:00:47]} 21. Nxf5 {[%emt 0:01:49]} Bxf5 {[%emt 0:00:15]} 22. Rcd1 {[%emt 0:01:30]} Nf8 {[%emt 0:04:14]} 23. g4 {[%emt 0:03:04]} Bg6 {[%emt 0:00:31]} 24. Qf2 {[%emt 0:01:59]} exd4 {[%emt 0:01:09]} 25. Bb3 {[%emt 0:00:43]} c5 {[%emt 0:01:38]} 26. bxc5 {[%emt 0:00:54]} Bxc5 {[%emt 0:00:29]} 27. Nxc5 {[%emt 0:00:30]} Qxc5 {[%emt 0:00:30]} 28. cxd4 {[%emt 0:00:30]} Qxa5 {[%emt 0:00:30]} 29. d5 {[%emt 0:00:40]} Bf7 {[%emt 0:01:46]} 30. Qe3 {[%emt 0:00:49]} Qc5 {[%emt 0:00:17]} 31. Qxc5 {[%emt 0:00:41]} Rxc5 {[%emt 0:00:09]} 32. Kf2 {[%emt 0:00:16]} Ng6 {[%emt 0:00:35]} 33. Kg3 {[%emt 0:00:35]} h6 {[%emt 0:01:15]} 34. h4 {[%emt 0:00:15]} a5 {[%emt 0:01:16]} 35. f4 {[%emt 0:00:50]} Rc3+ {[%emt 0:00:10]} 36. Rd3 {[%emt 0:00:30]} Rxd3+ {[%emt 0:00:10]} 37. Rxd3 {[%emt 0:00:03]} b5 {[%emt 0:00:43]} 38. h5 {[%emt 0:00:16]} Nf8 {[%emt 0:01:53]} 39. Kh4 {[%emt 0:00:51]} a4 {[%emt 0:00:17]} 40. Bd1 {[%emt 0:00:50]} Rxd5 {[%emt 0:00:16]} 41. Be2 {[%emt 0:00:33]} Rxd3 {[%emt 0:00:15]} 42. Bxd3 {[%emt 0:00:04]} b4 {[%emt 0:00:22]} 43. g5 {[%emt 0:00:33]} hxg5+ {[%emt 0:00:16]} 44. fxg5 {[%emt 0:00:14]} a3 {[%emt 0:00:09]} 45. g6 {[%emt 0:00:39]} Be6 {[%emt 0:00:19]} 46. h6 {[%emt 0:00:09]} a2 {[%emt 0:00:14]} 0-1

[Event "LJ Slovak Open 2022"]
[Site "Liptovsky Jan"]
[Date "2022.06.23"]
[Round "1.52"]
[White "Staron, Ladislav"]
[Black "Sotnik, Simon"]
[Result "1-0"]
[ECO "D13"]
[WhiteElo "1695"]
[BlackElo "1038"]
[Annotator "NA RC"]
[PlyCount "87"]
[EventDate "2022.06.23"]
[EventType "swiss"]
[EventCountry "SVK"]
[SourceTitle "playchess.com"]
[Source "ChessBase"]
[SourceQuality "1"]
[TimeControl "3600+30"]

1. d4 {[%emt 0:00:11]} d5 {[%emt 0:00:23]} 2. c4 {[%emt 0:00:06]} c6 {[%emt 0:01:23]} 3. Nf3 {[%emt 0:00:12]} Nf6 {[%emt 0:00:43]} 4. Nc3 {[%emt 0:00:37]} Bf5 {[%emt 0:01:44]} 5. cxd5 {[%emt 0:00:31]} cxd5 {[%emt 0:00:30]} 6. Bf4 {[%emt 0:00:12]} e6 {[%emt 0:01:04]} 7. e3 {[%emt 0:00:04]} Bb4 {[%emt 0:01:25]} 8. Bb5+ {[%emt 0:00:27]} Nbd7 {[%emt 0:00:24]} 9. O-O {[%emt 0:00:36]} Bxc3 {[%emt 0:00:28]} 10. bxc3 {[%emt 0:00:09]} O-O {[%emt 0:00:40]} 11. Bd3 {[%emt 0:02:33]} Bxd3 {[%emt 0:02:55]} 12. Qxd3 {[%emt 0:00:10]} Ne4 {[%emt 0:01:14]} 13. c4 {[%emt 0:00:37]} Re8 {[%emt 0:01:05]} 14. cxd5 {[%emt 0:00:23]} exd5 {[%emt 0:00:37]} 15. Rfc1 {[%emt 0:03:14]} Rc8 {[%emt 0:00:17]} 16. Qb5 {[%emt 0:01:45]} Rxc1+ {[%emt 0:01:55]} 17. Rxc1 {[%emt 0:00:09]} b6 {[%emt 0:01:27]} 18. Qxd5 {[%emt 0:01:15]} Ndf6 {[%emt 0:00:52]} 19. Qxd8 {[%emt 0:00:35]} Rxd8 {[%emt 0:00:12]} 20. h3 {[%emt 0:04:51]} h6 {[%emt 0:00:57]} 21. Ne5 {[%emt 0:02:39]} Nh5 {[%emt 0:00:47]} 22. Bh2 {[%emt 0:01:22]} f6 {[%emt 0:00:58]} 23. Nc6 {[%emt 0:07:19]} Re8 {[%emt 0:02:04]} 24. g4 {[%emt 0:00:30]} Nhg3 {[%emt 0:00:30]} 25. Bxg3 {[%emt 0:00:30]} Nxg3 {[%emt 0:00:52]} 26. fxg3 {[%emt 0:07:29]} Rxe3 {[%emt 0:00:56]} 27. Kf2 {[%emt 0:00:30]} Ra3 {[%emt 0:00:30]} 28. Rc2 {[%emt 0:00:30]} Kh7 {[%emt 0:00:30]} 29. Rd2 {[%emt 0:00:30]} Rc3 {[%emt 0:00:30]} 30. Nxa7 {[%emt 0:00:30]} Rc7 {[%emt 0:00:30]} 31. Nb5 {[%emt 0:00:30]} Rd7 {[%emt 0:00:30]} 32. d5 {[%emt 0:00:30]} Kg6 {[%emt 0:00:30]} 33. d6 {[%emt 0:00:30]} f5 {[%emt 0:00:30]} 34. gxf5+ {[%emt 0:00:30]} Kxf5 {[%emt 0:00:30]} 35. Nc7 {[%emt 0:00:30]} g5 {[%emt 0:00:54]} 36. Na8 {[%emt 0:00:27]} Ke6 {[%emt 0:00:42]} 37. Nxb6 {[%emt 0:00:32]} Rxd6 {[%emt 0:00:22]} 38. Rxd6+ {[%emt 0:00:16]} Kxd6 {[%emt 0:00:11]} 39. Nc4+ {[%emt 0:00:21]} Kc5 {[%emt 0:00:12]} 40. Ne5 {[%emt 0:00:24]} Kb4 {[%emt 0:00:18]} 41. Nf7 {[%emt 0:00:19]} Ka3 {[%emt 0:00:22]} 42. Nxh6 {[%emt 0:00:09]} Kxa2 {[%emt 0:00:14]} 43. Kf3 {[%emt 0:00:23]} Kb3 {[%emt 0:00:18]} 44. Kg4 {[%emt 0:00:10]} 1-0